fUSD/lending_fUSD_20250228
["ID","MTS","AMOUNT","RATE_DAILY","PERIOD"]
[354822283,1740718239219,-777.07,0.00028243,2]
[354822285,1740718239228,-777.07,0.00028243,2]
[354822287,1740718239238,-777.07,0.00028243,2]
[354822289,1740718239246,-615.96838981,0.00028243,2]
[354822291,1740718239259,-161.10161019,0.00028243,2]
[354822293,1740718239268,-202.82,0.00028243,2]
[354822295,1740718239278,-777.07,0.00028282,2]
[354822297,1740718239287,-564.32,0.00028483,2]
[354822299,1740718239296,-439.81,0.00028517,2]
[354822301,1740718239305,-439.81,0.00028517,2]
[354822303,1740718239314,-608.358,0.00028676,2]
[354822305,1740718239324,-150.0,0.00028676,2]
[354822307,1740718239334,-450.0,0.00029,2]
[354822309,1740718239343,-195.7582592,0.00029243,4]
[354822311,1740718239353,-439.81,0.00029339,2]
[354822313,1740718239363,-439.81,0.00029339,2]
[354822315,1740718239372,-256.39,0.00029339,2]
[354822317,1740718239381,-353.23,0.00029339,2]
[354822319,1740718239390,-200.0,0.00029601,2]
[354822321,1740718239399,-180.84,0.00029723,2]
[354822323,1740718239408,-157.0701458,0.0002973,2]
[354822344,1740718239601,-3700.1418065,0.00029732,2]
[354822346,1740718239611,-321.15709671,0.00029732,2]
[354822348,1740718239621,-822.86586061,0.00029732,2]
[354822350,1740718239632,-71.25797902,0.00029799,2]
[354822352,1740718239644,-84.12202098,0.00029799,2]
[354822354,1740718239654,-155.38,0.00029799,2]
[354822356,1740718239666,-155.38,0.00029799,2]
[354822358,1740718239675,-155.38,0.00029799,2]
[354822360,1740718239685,-155.38,0.00029799,2]
[354822362,1740718239695,-155.38,0.00029799,2]
[354822364,1740718239704,-155.38,0.00029799,2]
[354822366,1740718239713,-155.38,0.00029799,2]
[354822368,1740718239723,-500.0,0.00029799,2]
[354822370,1740718239732,-372.63895733,0.00029799,2]
[354822372,1740718239744,-183.40387084,0.00029799,2]
[354822374,1740718239753,-6029.6817824,0.000298,2]
[354822462,1740718240685,-37233.58069496,0.000298,2]
[354822469,1740718240742,-14939.61393814,0.000298,2]
[354822472,1740718240764,-1149.51685511,0.000298,2]
[354822477,1740718240800,-318.03,0.000298,2]
[354822484,1740718240859,-3501.18341459,0.000298,2]
[354822487,1740718240870,-2101.0618,0.000298,2]
[354822489,1740718240881,-16010.26369667,0.000298,2]
[354822500,1740718240973,-346018.01127232,0.000298,2]
[354822508,1740718241038,-271.04643563,0.000298,2]
[354822510,1740718241051,-495.68719811,0.000298,2]
[354822513,1740718241074,-3645.131951,0.000298,2]
[354822515,1740718241086,-3247.30642505,0.000298,2]
[354822518,1740718241097,-861.65,0.000298,2]
[354822523,1740718241145,-1728.77262585,0.000298,2]
[354822526,1740718241157,-493.98587737,0.000298,2]
[354822532,1740718241205,-413.69380413,0.000298,2]
[354822751,1740718243083,-399.875,0.000298,2]
[354822884,1740718244267,-748.65001444,0.000298,2]
[354822886,1740718244278,-476.94648699,0.000298,2]
[354822889,1740718244296,-254.39513532,0.000298,2]
[354822891,1740718244308,-800.8,0.000298,2]
[354822893,1740718244321,-412.33971434,0.000298,2]
[354822896,1740718244333,-2390.7378954,0.000298,2]
[354822898,1740718244349,-1155.99375068,0.000298,2]
[354823092,1740718246269,-608.83533071,0.000298,2]
[354823094,1740718246280,-157015.98877253,0.000298,2]
[354823096,1740718246291,-341.7161857,0.000298,2]
[354823101,1740718246329,-18417.2349972,0.000298,2]
[354823108,1740718246382,-100022.65894004,0.000298,2]
[354823111,1740718246396,-79258.74226536,0.000298,2]
[354823113,1740718246407,-743.77510132,0.000298,2]
[354823120,1740718246468,-24336.86641798,0.000298,2]
[354823230,1740718321407,159.01,0.0003097,30]
[354823279,1740719315410,305659.90453171,0.0004,30]
[354823305,1740719432332,-250.0,0.00021,2]
[354823306,1740719432342,-108.78420584,0.00021,2]
[354823307,1740719432353,-391.21579416,0.00021,2]
[354823308,1740719432363,-62.94045468,0.00021,2]
[354823309,1740719432570,-437.05954532,0.00021,2]
[354823310,1740719432579,-300.0,0.00021,2]
[354823311,1740719432589,-150.0,0.00021008,2]
[354823312,1740719432599,-163.18672005,0.00021015,2]
[354823313,1740719432607,-934.45373463,0.00021015,2]
[354823342,1740719438173,-215.21606604,0.00021015,2]
[354823343,1740719438183,-167.35,0.00021918,2]
[354823344,1740719438192,-730.44259816,0.0002239,2]
[354823345,1740719438201,-43.2913358,0.00022399,2]
[354823346,1740719438289,-256.7086642,0.00022399,2]
[354823347,1740719438299,-17838.63835623,0.000224,2]
[354823525,1740719440382,-303.633,0.000224,2]
[354823536,1740719440498,-290.241804,0.000224,2]
[354823544,1740719440562,-2017.2864051,0.000224,2]
[354824202,1740719446654,-24310.10455633,0.000224,2]
[354824204,1740719446665,-300.0,0.00023,2]
[354824206,1740719446675,-450.0,0.000231,2]
[354824208,1740719446684,-150.0,0.000231,2]
[354824211,1740719446693,-450.0,0.000231,2]
[354824212,1740719446703,-450.0,0.000231,2]
[354824214,1740719446712,-150.0,0.000231,2]
[354824217,1740719446721,-3136.5003,0.0002345,2]
[354824219,1740719446731,-245.21239832,0.000239,3]
[354824221,1740719446740,-420.0,0.0002433,2]
[354824223,1740719446749,-344.98545354,0.000244,2]
[354824225,1740719446759,-1328.451,0.00024544,7]
[354824227,1740719446768,-600.57839249,0.000247,2]
[354824229,1740719446777,-350.0,0.00025,2]
[354824231,1740719446786,-245.21239811,0.0002521,4]
[354824233,1740719446795,-587.0,0.00026428,2]
[354824235,1740719446804,-300.0,0.00026484,2]
[354824237,1740719446813,-23900.0,0.00026501,2]
[354824239,1740719446822,-245.21239811,0.00026521,4]
[354824241,1740719446831,-171.93,0.00026535,2]
[354824243,1740719446840,-1000.0,0.00026552,2]
[354824245,1740719446849,-373.63,0.00026626,2]
[354824247,1740719446858,-373.63,0.00026766,2]
[354824248,1740719446867,-886.33,0.00026819,2]
[354824250,1740719446876,-287.73,0.00026849,2]
[354824252,1740719446885,-176.76,0.00026876,2]
[354824254,1740719446894,-373.63,0.00026906,2]
[354824256,1740719446903,-250.0,0.00026983,2]
[354824258,1740719446912,-400.0,0.00027,2]
[354824259,1740719446921,-373.63,0.00027046,2]
[354824260,1740719446930,-8463.82,0.00027143,2]
[354824261,1740719446939,-500.0,0.00027178,2]
[354824262,1740719446948,-373.63,0.00027186,2]
[354824263,1740719446957,-373.63,0.00027326,2]
[354824264,1740719446965,-150.0,0.00027374,7]
[354824265,1740719446974,-373.63,0.00027467,2]
[354824266,1740719446983,-200.0,0.00027534,2]
[354824267,1740719446991,-373.63,0.00027607,2]
[354824268,1740719447000,-373.63,0.00027747,2]
[354824269,1740719447009,-250.0,0.00027748,2]
[354824270,1740719447018,-245.21239811,0.00027831,4]
[354824271,1740719447027,-373.63,0.00027887,2]
[354824273,1740719447036,-570.14,0.00027977,2]
[354824275,1740719447045,-373.63,0.00028027,2]
[354824277,1740719447055,-373.63,0.00028167,2]
[354824279,1740719447064,-373.63,0.00028307,2]
[354824281,1740719447073,-373.63,0.00028448,2]
[354824283,1740719447082,-373.63,0.00028588,2]
[354824285,1740719447091,-823.0,0.00028707,2]
[354824287,1740719447100,-373.63,0.00028728,2]
[354824289,1740719447109,-500.0,0.00028843,2]
[354824291,1740719447118,-373.63,0.00028868,2]
[354824293,1740719447128,-450.0,0.00029,2]
[354824295,1740719447136,-373.63,0.00029008,2]
[354824297,1740719447146,-245.21239811,0.00029141,5]
[354824299,1740719447155,-373.63,0.00029148,2]
[354824301,1740719447165,-373.63,0.00029288,2]
[354824303,1740719447174,-5757.7742,0.000296,2]
[354824305,1740719447183,-200.0,0.00029601,2]
[354824307,1740719447192,-19323.5215,0.00029632,2]
[354824309,1740719447201,-10756.14956949,0.0002973,2]
[354824311,1740719447211,-1000.0,0.00029732,2]
[354824313,1740719447220,-1236.0538,0.00029732,2]
[354824315,1740719447229,-82986.07382597,0.000298,2]
[354824317,1740719447238,-3387.03891582,0.0002983,2]
[354824319,1740719447246,-169.83776181,0.0002983,2]
[354824321,1740719447255,-321.1570967,0.0002983,2]
[354824323,1740719447264,-2555.197,0.0002983,2]
[354824325,1740719447273,-768.00813656,0.00029832,2]
[354824327,1740719447283,-299.889,0.00029832,2]
[354824328,1740719447291,-2112.2205,0.00029832,2]
[354824330,1740719447301,-34148.8538,0.00029832,2]
[354824333,1740719447310,-4380.9841,0.00029832,2]
[354824334,1740719447319,-1000.0,0.00029832,2]
[354824336,1740719447328,-522.44,0.00029833,2]
[354824338,1740719447338,-1000.0,0.00029871,2]
[354824340,1740719447347,-13778.71996878,0.0002993,30]
[354824342,1740719447357,-223.38327559,0.0002993,120]
[354824344,1740719447366,-8072.29684811,0.0002993,30]
[354824346,1740719447375,-260.25438187,0.0002993,30]
[354824348,1740719447384,-1094.74708302,0.0002993,120]
[354824350,1740719447393,-114463.38783458,0.0002993,30]
[354824352,1740719447402,-749.83425481,0.0002993,120]
[354824354,1740719447414,-186.44799513,0.0002993,120]
[354824356,1740719447423,-1764.49878619,0.0002993,120]
[354824358,1740719447432,-3895.49340416,0.0002993,120]
[354824360,1740719447440,-1377.4982658,0.0002993,120]
[354824362,1740719447452,-1000.0,0.0002993,60]
[354824364,1740719447461,-984.62,0.0002993,30]
[354824366,1740719447471,-36816.42683874,0.0002993,2]
[354824370,1740719447495,-4852.35027,0.0002993,2]
[354824372,1740719447506,-756.47197807,0.0002993,2]
[354824374,1740719447516,-55.28830193,0.00029947,2]
[354824649,1740719723331,236.7058443,0.0004,30]
[354824650,1740719906611,159.01,0.00036123,120]
[354824657,1740720308826,633.0,0.00015,2]
[354824706,1740720474595,44194.97257554,0.000139,2]
[354824707,1740720481104,576.29710153,0.00014,2]
[354824812,1740720632543,-200.12156159,0.00014925,2]
[354824813,1740720632553,-4725.92256316,0.0001499,2]
[354824814,1740720632562,-300.0,0.00014999,2]
[354824815,1740720632572,-14874.23408189,0.00015,2]
[354824826,1740720638304,-35880.1676258,0.00015,2]
[354824827,1740720638314,-188.00691406,0.00015,2]
[354824829,1740720638323,-24001.06298544,0.00015,2]
[354824831,1740720638335,-2757.71327241,0.00015,2]
[354824832,1740720638482,-17257.46979869,0.00015,2]
[354824833,1740720638498,-305.0,0.00016416,2]
[354824834,1740720638508,-204.34366514,0.000179,2]
[354824835,1740720638519,-204.34366509,0.00018452,2]
[354824836,1740720638528,-352.7470356,0.00019721,2]
[354824837,1740720638537,-964.091589,0.0002,4]
[354824838,1740720638548,-204.34366509,0.00020003,2]
[354824839,1740720638559,-250.0,0.00021,2]
[354824840,1740720638568,-204.34366509,0.00021555,2]
[354824841,1740720638578,-167.35,0.00021918,2]
[354824842,1740720638587,-204.34366509,0.00023107,3]
[354824843,1740720638598,-1548.1965304,0.0002597,2]
[354824844,1740720638611,-157.36,0.00026849,2]
[354824845,1740720638621,-501.0,0.00027315,2]
[354824846,1740720638632,-150.83,0.00027397,2]
[354824847,1740720638642,-295.0,0.00027479,2]
[354824848,1740720638651,-150.0,0.00028549,2]
[354824849,1740720638661,-1123.5526,0.000289,2]
[354824850,1740720638672,-2543.06478085,0.00029,2]
[354824851,1740720638696,-384.81164377,0.00029,2]
[354824852,1740720638737,-3866.12357538,0.00029,2]
[354824853,1740720638757,-200.0,0.00029654,2]
[354824854,1740720638769,-250.8446,0.000297,2]
[354824855,1740720638780,-1000.0,0.000297,2]
[354824856,1740720638791,-4874.23876972,0.00029932,2]
[354824858,1740720638803,-984.62,0.00029932,30]
[354824860,1740720638814,-9999.999999,0.00029932,2]
[354824862,1740720638826,-21041.63928457,0.00029932,30]
[354824864,1740720638838,-223.38327559,0.00029932,120]
[354824885,1740720639026,-260.25438187,0.00029932,30]
[354824887,1740720639037,-1964.3135334,0.00029943,2]
[354824889,1740720639048,-662.10776177,0.00029947,2]
[354824891,1740720639057,-10375.47,0.00029947,2]
[354824893,1740720639067,-500.0,0.00029947,2]
[354824894,1740720639077,-500.0,0.00029947,2]
[354824897,1740720639088,-500.0,0.00029947,2]
[354824898,1740720639097,-500.0,0.00029947,2]
[354824901,1740720639106,-500.0,0.00029947,2]
[354824903,1740720639117,-500.0,0.00029947,2]
[354824905,1740720639130,-500.0,0.00029947,2]
[354824907,1740720639141,-500.0,0.00029947,2]
[354824908,1740720639152,-500.0,0.00029947,2]
[354824911,1740720639163,-500.0,0.00029947,2]
[354824912,1740720639172,-867.0,0.00029947,2]
[354824914,1740720639184,-500.0,0.00029947,2]
[354824917,1740720639194,-500.0,0.00029947,2]
[354824919,1740720639203,-500.0,0.00029947,2]
[354824920,1740720639212,-500.0,0.00029947,2]
[354824922,1740720639221,-500.0,0.00029947,2]
[354824924,1740720639230,-500.0,0.00029947,2]
[354824926,1740720639240,-500.0,0.00029947,2]
[354824928,1740720639249,-500.0,0.00029947,2]
[354824930,1740720639258,-500.0,0.00029947,2]
[354824933,1740720639267,-500.0,0.00029947,2]
[354824934,1740720639276,-500.0,0.00029947,2]
[354824936,1740720639285,-500.0,0.00029947,2]
[354824938,1740720639295,-500.0,0.00029947,2]
[354824940,1740720639304,-500.0,0.00029947,2]
[354824942,1740720639313,-500.0,0.00029947,2]
[354824944,1740720639323,-500.0,0.00029947,2]
[354824946,1740720639332,-500.0,0.00029947,2]
[354824948,1740720639341,-500.0,0.00029947,2]
[354824950,1740720639353,-500.0,0.00029947,2]
[354824953,1740720639363,-650.0,0.00029947,2]
[354824955,1740720639372,-500.0,0.00029947,2]
[354824956,1740720639382,-500.0,0.00029947,2]
[354824959,1740720639392,-935.0,0.00029947,2]
[354824960,1740720639402,-4048.7095387,0.00029995,2]
[354824962,1740720639411,-1062.761,0.00030015,24]
[354824964,1740720639420,-450.0,0.00030137,2]
[354824966,1740720639433,-150.0,0.00030137,2]
[354824968,1740720639442,-2783.38993371,0.00030187,3]
[354824970,1740720639451,-777.07,0.00031121,2]
[354824972,1740720639461,-880.11,0.00031121,2]
[354824975,1740720639472,-777.07,0.00031121,2]
[354824977,1740720639482,-777.07,0.00031121,2]
[354824979,1740720639491,-777.07,0.00031121,2]
[354824980,1740720639500,-772.91,0.00031121,2]
[354824982,1740720639510,-151.482,0.00031661,2]
[354824984,1740720639520,-550.29,0.00031661,2]
[354824987,1740720639529,-912.618,0.00031661,2]
[354824989,1740720639540,-1269.932,0.00031661,2]
[354824990,1740720639550,-896.0,0.00031661,2]
[354824993,1740720639560,-540.435,0.00031661,2]
[354824994,1740720639571,-1424.0,0.00031661,2]
[354824996,1740720639580,-4033.0,0.00031661,2]
[354824998,1740720639590,-382.32,0.00031661,2]
[354825000,1740720639599,-150.0,0.00031661,2]
[354825002,1740720639608,-3919.0,0.00031661,2]
[354825004,1740720639617,-641.0,0.00031661,2]
[354825006,1740720639627,-150.97,0.00031805,2]
[354825008,1740720639636,-541.63,0.00032062,2]
[354825010,1740720639646,-128.29778258,0.00032646,2]
[354825108,1740720640567,-204.34366509,0.00024659,3]
[354825110,1740720640576,-204.34366509,0.0002621,4]
[354825112,1740720640586,-204.34366509,0.00027762,4]
[354825114,1740720640596,-204.34366509,0.00029314,5]
[354825116,1740720640605,-204.34366509,0.00030866,5]
[354825118,1740720640615,-159.43221742,0.00032646,2]
[354825120,1740720640624,-500.0,0.00033681,12]
[354825122,1740720640633,-500.0,0.00033681,12]
[354825124,1740720640643,-500.0,0.00033681,12]
[354825126,1740720640652,-500.0,0.00033681,12]
[354825128,1740720640661,-500.0,0.00033681,12]
[354825130,1740720640670,-500.0,0.00033681,12]
[354825132,1740720640681,-500.0,0.00033681,12]
[354825134,1740720640691,-500.0,0.00033681,12]
[354825136,1740720640700,-500.0,0.00033681,12]
[354825138,1740720640709,-500.0,0.00033681,12]
[354825140,1740720640718,-150.0,0.00034133,7]
[354825142,1740720640728,-5748.56710713,0.00034278,2]
[354825146,1740720640760,-204.34366509,0.00032417,6]
[354825148,1740720640770,-18151.43289287,0.00034278,2]
[354825150,1740720640780,-541.63,0.00034326,2]
[354825152,1740720640790,-150.0,0.00034661,2]
[354825154,1740720640800,-641.0,0.00034661,2]
[354825156,1740720640810,-200.0,0.00035648,2]
[354825158,1740720640820,-1000.0,0.00035784,2]
[354825160,1740720640830,-250.0,0.0003586,2]
[354825162,1740720640840,-291.22,0.00035925,2]
[354825164,1740720640851,-443.16,0.0003597,2]
[354825166,1740720640863,-291.22,0.00036114,2]
[354825168,1740720640873,-291.22,0.00036303,2]
[354825170,1740720640883,-291.22,0.00036492,2]
[354825172,1740720640893,-541.63,0.0003659,2]
[354825174,1740720640903,-291.22,0.00036681,2]
[354825176,1740720640912,-291.22,0.0003687,2]
[354825178,1740720640922,-291.22,0.00037059,2]
[354825180,1740720640937,-291.22,0.00037248,2]
[354825182,1740720640947,-291.22,0.00037437,2]
[354825184,1740720640956,-291.22,0.00037626,2]
[354825186,1740720640967,-150.0,0.00037661,2]
[354825188,1740720640977,-641.0,0.00037661,2]
[354825190,1740720640987,-291.22,0.00037815,2]
[354825192,1740720640996,-291.22,0.00038005,2]
[354825194,1740720641005,-291.22,0.00038194,2]
[354825196,1740720641015,-291.22,0.00038383,2]
[354825197,1740720641024,-287.73,0.00038443,2]
[354825199,1740720641034,-291.22,0.00038572,2]
[354825200,1740720641043,-291.22,0.00038761,2]
[354825202,1740720641052,-541.63,0.00038854,2]
[354825204,1740720641061,-291.22,0.0003895,2]
[354825206,1740720641070,-291.22,0.00039139,2]
[354825208,1740720641079,-291.22,0.00039328,2]
[354825210,1740720641088,-291.22,0.00039517,2]
[354825212,1740720641097,-150.0,0.0003956,2]
[354825214,1740720641106,-150.0,0.00039562,2]
[354825215,1740720641115,-150.0,0.00039568,2]
[354825216,1740720641125,-150.0,0.0003957,2]
[354825217,1740720641133,-150.0,0.00039589,2]
[354825218,1740720641142,-150.0,0.00039596,2]
[354825219,1740720641151,-150.0,0.00039596,2]
[354825221,1740720641161,-150.0,0.00039597,2]
[354825223,1740720641170,-150.0,0.00039602,2]
[354825225,1740720641183,-150.0,0.00039603,2]
[354825227,1740720641192,-150.0,0.00039604,2]
[354825229,1740720641202,-151.99186614,0.00039609,2]
[354825231,1740720641211,-150.0,0.00039612,2]
[354825233,1740720641221,-150.0,0.00039619,2]
[354825235,1740720641230,-150.0,0.0003962,2]
[354825237,1740720641239,-150.0,0.00039621,2]
[354825239,1740720641249,-150.0,0.00039623,2]
[354825241,1740720641258,-150.0,0.00039627,2]
[354825243,1740720641267,-150.0,0.00039628,2]
[354825245,1740720641276,-150.0,0.0003963,2]
[354825247,1740720641285,-150.0,0.0003963,2]
[354825249,1740720641295,-150.0,0.00039632,2]
[354825251,1740720641304,-150.0,0.00039633,2]
[354825253,1740720641313,-150.0,0.00039633,2]
[354825254,1740720641322,-150.0,0.0003964,2]
[354825256,1740720641331,-150.0,0.00039641,2]
[354825259,1740720641341,-150.0,0.00039643,2]
[354825261,1740720641350,-150.0,0.00039647,2]
[354825263,1740720641360,-150.0,0.00039647,2]
[354825265,1740720641369,-150.0,0.00039647,2]
[354825267,1740720641378,-150.0,0.00039651,2]
[354825268,1740720641389,-150.0,0.00039654,2]
[354825271,1740720641399,-150.0,0.00039661,2]
[354825272,1740720641408,-150.0,0.00039663,2]
[354825274,1740720641417,-150.0,0.00039666,2]
[354825276,1740720641426,-150.0,0.00039667,2]
[354825278,1740720641438,-150.0,0.00039673,2]
[354825280,1740720641447,-150.0,0.00039674,2]
[354825282,1740720641457,-150.0,0.00039679,2]
[354825285,1740720641467,-150.0,0.00039679,2]
[354825287,1740720641476,-150.0,0.00039689,2]
[354825288,1740720641485,-150.0,0.00039689,2]
[354825290,1740720641494,-150.0,0.00039692,2]
[354825292,1740720641503,-150.0,0.00039693,2]
[354825294,1740720641513,-150.0,0.00039697,2]
[354825296,1740720641522,-150.0,0.00039698,2]
[354825298,1740720641532,-150.0,0.00039698,2]
[354825300,1740720641542,-150.0,0.00039704,2]
[354825302,1740720641551,-150.0,0.00039708,2]
[354825304,1740720641559,-150.0,0.00039714,2]
[354825306,1740720641568,-150.0,0.00039716,2]
[354825308,1740720641580,-1243.0,0.0003972,5]
[354825310,1740720641589,-150.0,0.0003972,2]
[354825312,1740720641598,-150.0,0.00039721,2]
[354825314,1740720641608,-150.0,0.00039722,2]
[354825316,1740720641616,-150.0,0.00039723,2]
[354825318,1740720641626,-150.0,0.00039724,2]
[354825320,1740720641635,-150.0,0.00039726,2]
[354825322,1740720641644,-150.0,0.00039732,2]
[354825324,1740720641653,-87.05157588,0.00039732,2]
[354825645,1740720644440,-469.524025,0.00031661,2]
[354825836,1740720646591,-641.475975,0.00031661,2]
[354825838,1740720646601,-204.34366509,0.00033969,6]
[354825840,1740720646611,-204.34366509,0.00035521,7]
[354825842,1740720646621,-204.34366509,0.00037072,7]
[354825844,1740720646632,-204.34366509,0.00038624,8]
[354825846,1740720646643,-150.0,0.00039534,2]
[354825848,1740720646653,-150.0,0.00039537,2]
[354825850,1740720646663,-150.0,0.00039543,2]
[354825852,1740720646673,-150.0,0.00039553,2]
[354825854,1740720646686,-150.0,0.00039556,2]
[354825856,1740720646695,-150.0,0.00039567,2]
[354825858,1740720646705,-150.0,0.00039572,2]
[354825860,1740720646714,-150.0,0.0003958,2]
[354825862,1740720646723,-150.0,0.00039582,2]
[354825864,1740720646733,-150.0,0.00039592,2]
[354825866,1740720646742,-150.0,0.00039602,2]
[354825868,1740720646751,-150.0,0.00039613,2]
[354825870,1740720646761,-150.0,0.00039615,2]
[354825872,1740720646770,-150.0,0.00039616,2]
[354825874,1740720646779,-150.0,0.00039623,2]
[354825876,1740720646789,-150.0,0.00039628,2]
[354825878,1740720646798,-150.0,0.00039633,2]
[354825880,1740720646807,-150.0,0.00039635,2]
[354825882,1740720646816,-150.0,0.0003964,2]
[354825884,1740720646825,-150.0,0.00039645,2]
[354825886,1740720646834,-150.0,0.00039647,2]
[354825888,1740720646844,-150.0,0.00039655,2]
[354825890,1740720646856,-150.0,0.00039657,2]
[354825892,1740720646869,-150.0,0.0003966,2]
[354825894,1740720646878,-150.0,0.00039661,2]
[354825896,1740720646887,-150.0,0.00039665,2]
[354825898,1740720646897,-150.0,0.00039665,2]
[354825900,1740720646906,-150.0,0.00039673,2]
[354825902,1740720646915,-150.0,0.00039681,2]
[354825904,1740720646924,-150.0,0.00039691,2]
[354825906,1740720646937,-150.0,0.00039692,2]
[354825908,1740720646949,-150.0,0.00039695,2]
[354825910,1740720646958,-150.0,0.00039696,2]
[354825912,1740720646967,-150.0,0.00039699,2]
[354825914,1740720646977,-150.0,0.000397,2]
[354825916,1740720646986,-150.0,0.00039704,2]
[354825917,1740720646996,-150.0,0.00039709,2]
[354825918,1740720647005,-150.0,0.00039718,2]
[354825919,1740720647014,-150.0,0.00039723,2]
[354825920,1740720647023,-150.0,0.00039725,2]
[354825921,1740720647033,-150.0,0.00039729,2]
[354825922,1740720647042,-62.94842412,0.00039732,2]
[354825923,1740720647051,-150.0,0.00039734,2]
[354825924,1740720647060,-150.0,0.00039736,2]
[354825925,1740720647069,-150.0,0.00039737,2]
[354825926,1740720647078,-150.0,0.00039739,2]
[354825927,1740720647087,-150.0,0.0003974,2]
[354825929,1740720647096,-150.0,0.00039741,2]
[354825931,1740720647105,-150.0,0.00039743,2]
[354825933,1740720647114,-150.0,0.00039744,2]
[354825935,1740720647124,-150.0,0.00039744,2]
[354825937,1740720647133,-150.0,0.00039749,2]
[354825939,1740720647142,-150.0,0.0003975,2]
[354825941,1740720647152,-150.0,0.00039752,2]
[354825943,1740720647162,-150.0,0.00039753,2]
[354825945,1740720647171,-150.0,0.00039753,2]
[354825947,1740720647180,-150.0,0.00039754,2]
[354825949,1740720647192,-150.0,0.00039758,2]
[354825951,1740720647202,-197.63451459,0.0003976,2]
[354825953,1740720647211,-150.0,0.00039761,2]
[354825955,1740720647221,-150.0,0.00039761,2]
[354825957,1740720647231,-150.0,0.00039763,2]
[354825959,1740720647240,-150.0,0.00039763,2]
[354825961,1740720647249,-150.0,0.00039763,2]
[354825963,1740720647259,-150.0,0.00039764,2]
[354825965,1740720647268,-127.40533386,0.00039765,2]
[354825968,1740720647281,-22.59466614,0.00039765,2]
[354825970,1740720647290,-150.0,0.00039765,2]
[354825972,1740720647299,-150.0,0.00039767,2]
[354825973,1740720647309,-150.0,0.00039769,2]
[354825976,1740720647319,-150.0,0.00039769,2]
[354825978,1740720647329,-150.0,0.00039775,2]
[354825980,1740720647339,-150.0,0.00039775,2]
[354825981,1740720647348,-150.0,0.00039775,2]
[354825983,1740720647358,-150.0,0.00039776,2]
[354825985,1740720647367,-150.0,0.0003978,2]
[354825986,1740720647377,-150.0,0.0003978,2]
[354825987,1740720647386,-150.0,0.00039781,2]
[354825988,1740720647396,-150.0,0.00039781,2]
[354825989,1740720647406,-150.0,0.00039782,2]
[354825990,1740720647415,-150.0,0.00039787,2]
[354825991,1740720647425,-150.0,0.00039787,2]
[354825992,1740720647436,-150.0,0.00039794,2]
[354825993,1740720647445,-150.0,0.000398,2]
[354825994,1740720647455,-150.0,0.000398,2]
[354825995,1740720647465,-150.0,0.00039804,2]
[354825996,1740720647474,-150.0,0.00039805,2]
[354825997,1740720647483,-150.0,0.00039807,2]
[354825999,1740720647494,-150.0,0.00039808,2]
[354826001,1740720647503,-150.0,0.00039808,2]
[354826003,1740720647513,-150.0,0.00039809,2]
[354826005,1740720647522,-150.0,0.00039812,2]
[354826007,1740720647532,-150.0,0.00039815,2]
[354826009,1740720647541,-150.0,0.00039819,2]